bitfinex/quotes_ETHUSD_20260103
["timestamp","ask_amount","ask_price","bid_price","bid_amount"]
[1767425464634,0.23576965,3086.5,3085.8,3.24143672]
[1767425464832,0.001,3086.5,3085.8,0.00080008]
[1767425465663,2.3142521,3086.5,3085.8,0.00080008]
[1767425465868,3.24012571,3086.3,3085.8,0.00080008]
[1767425466065,2.3142521,3086.5,3085.8,0.00080008]
[1767425466066,0.001,3086.5,3085.8,0.00080008]
[1767425466642,0.001,3086.5,3085.9,0.85]
[1767425467670,0.001,3086.5,3085.9,3.25732764]
[1767425467886,0.001,3086.9,3086.1,6.48067138]
[1767425468174,0.001,3086.9,3086.1,8.88799902]
[1767425468574,0.001,3086.9,3086.1,5.64766333]
[1767425468936,0.001,3086.9,3086.1,2.40732764]
[1767425469174,0.001,3086.9,3085.8,0.00080008]
[1767425469340,3.55099035,3086.9,3085.8,0.00080008]
[1767425469543,3.55099035,3086.9,3085.8,0.85080008]
[1767425469748,1.23773825,3086.9,3085.8,0.85080008]
[1767425469950,6.79051694,3086.9,3085.8,0.85080008]
[1767425470153,0.001,3086.5,3085.8,3.24144767]
[1767425470366,0.001,3086.5,3085.8,4.09144767]
[1767425470574,0.001,3086.9,3085.9,2.40732764]
[1767425471356,0.0008,3087.0,3086.2,2.40732764]
[1767425471537,0.0008,3087.0,3086.3,3.25732764]
[1767425471739,3.24024142,3087.0,3085.9,2.40732764]
[1767425471993,0.0008,3087.0,3086.0,0.85]
[1767425472148,0.0008,3087.0,3085.9,2.40732764]
[1767425472360,0.03424435,3087.0,3085.9,2.40732764]
[1767425472649,0.03424435,3087.0,3086.0,0.85]
[1767425473117,2.34749645,3087.0,3085.8,0.00080008]
[1767425473286,2.54800175,3086.9,3085.9,0.85]
[1767425473604,0.03344435,3086.8,3085.9,0.85]
[1767425473987,3.23970583,3086.7,3085.8,0.85080008]
[1767425474191,0.03344435,3086.6,3085.8,0.85080008]
[1767425476316,3.23989852,3086.6,3085.8,0.85080008]
[1767425476517,3.23989852,3086.6,3085.8,4.09144824]
[1767425476518,0.65129609,3086.6,3085.8,4.09144824]
[1767425476690,3.2730462,3086.8,3085.8,4.09144824]
[1767425476904,0.03344435,3086.8,3085.8,4.09144824]
[1767425477110,0.0018,3087.0,3085.9,2.43973309]
[1767425477628,2.3132521,3086.9,3085.9,0.03240545]
[1767425477806,2.87204591,3086.9,3085.9,1.00958866]
[1767425478128,6.11159632,3086.9,3085.9,4.25003835]
[1767425478625,2.87204591,3086.9,3085.9,7.49058405]
[1767425478930,0.0018,3087.0,3085.9,7.4581786]
[1767425479132,0.0018,3087.0,3086.0,0.0324044]
[1767425480197,0.0018,3087.0,3086.1,6.48067138]
[1767425480633,0.0018,3087.0,3086.1,3.24033569]
[1767425481304,0.0018,3087.0,3086.0,0.0324044]
[1767425481504,0.0018,3087.0,3086.0,4.02366229]
[1767425482725,0.0018,3087.0,3086.0,0.78322906]
[1767425482928,0.03524435,3087.0,3086.1,0.85]
[1767425483111,0.0018,3087.0,3086.1,0.85]
[1767425483430,0.32745304,3086.9,3086.1,0.85]
[1767425483628,0.32745304,3086.9,3086.2,0.85]
[1767425484139,2.3132521,3086.7,3085.8,0.00080008]
[1767425484340,3.23981079,3086.6,3086.0,0.002]
[1767425484537,3.23981079,3086.6,3085.8,0.00080008]
[1767425484538,2.3132521,3086.5,3085.8,0.00080008]
[1767425486043,3.23975212,3086.7,3085.8,0.00080008]
[1767425486211,0.87925077,3086.7,3085.8,0.00080008]
[1767425486415,4.11900129,3086.7,3085.8,0.00080008]
[1767425486635,2.34669645,3086.6,3085.8,0.00080008]
[1767425488038,2.3132521,3086.6,3085.8,0.03320658]
[1767425488430,2.3132521,3086.6,3085.9,0.03240545]
[1767425488626,0.96720039,3086.5,3085.8,0.00080008]
[1767425488938,9.86199183,3086.5,3085.8,0.00080008]
[1767425489139,0.00080008,3086.2,3085.0,3.2422263]
[1767425489340,2.41480534,3086.1,3085.1,4.09137745]
[1767425489638,2.41480534,3086.1,3085.1,4.09131624]
[1767425489840,0.00080008,3086.2,3085.2,3.29660639]
[1767425490039,0.00080008,3086.2,3085.5,3.24094705]
[1767425490738,0.00080008,3086.2,3085.3,3.24116429]
[1767425490739,0.00080008,3086.2,3085.3,6.48234018]
[1767425491240,0.00080008,3086.2,3085.3,8.89653377]
[1767425491438,0.00080008,3086.2,3085.8,0.002]
[1767425492536,0.23145665,3086.2,3085.8,0.002]
[1767425493035,0.23145665,3086.2,3085.4,3.24107084]
[1767425493420,3.47169151,3086.2,3085.2,0.8824128]
[1767425493626,3.47169151,3086.2,3085.2,4.12364827]
[1767425493813,3.47169151,3086.2,3085.3,3.24116597]
[1767425494443,3.47169151,3086.2,3085.3,4.21908138]
[1767425494660,0.23145665,3086.2,3085.3,4.21908138]
[1767425494820,0.00080008,3086.2,3085.3,7.46025727]
[1767425495359,0.00080008,3086.2,3085.3,9.87445086]
[1767425496053,0.00080008,3086.2,3085.4,2.41419359]
[1767425496539,3.24103771,3086.2,3085.4,2.41419359]
[1767425497053,3.24103771,3086.2,3085.3,0.97791541]
[1767425497264,4.12307638,3086.2,3085.2,6.50542805]
[1767425497613,4.15652073,3086.2,3085.2,6.50542805]
[1767425497969,4.15652073,3086.2,3085.3,3.24115917]
[1767425498120,2.30576565,3086.1,3085.2,0.85]
[1767425498320,2.30576565,3086.1,3085.3,3.24111864]
[1767425498652,2.95199429,3086.1,3085.3,3.24311864]
[1767425498828,0.64622864,3086.1,3085.3,3.24311864]
[1767425499157,3.92003761,3086.1,3085.3,0.002]
[1767425500326,0.64622864,3086.1,3085.3,0.002]
[1767425500526,0.64622864,3086.1,3085.3,2.41619359]
[1767425500933,0.00080008,3086.2,3085.4,2.41419359]
[1767425501134,0.00080008,3086.2,3085.5,3.2409658]
[1767425501646,0.00080008,3086.2,3085.6,2.41419359]
[1767425501845,0.00080008,3086.2,3085.6,2.44660219]
[1767425503085,0.03344435,3086.7,3085.6,0.0324086]
[1767425503347,0.0018,3087.0,3086.0,8.89507497]
[1767425503523,0.0018,3087.0,3086.0,12.13551566]
[1767425503725,0.0018,3087.0,3086.0,8.89507497]
[1767425503923,0.0018,3087.0,3086.1,2.41419359]
[1767425504328,0.0018,3087.0,3085.9,3.24050859]
[1767425504329,2.30756565,3087.0,3085.9,3.24050859]
[1767425504546,2.30576565,3086.8,3085.9,3.24050859]
[1767425504752,2.30576565,3086.6,3085.9,3.24050859]
[1767425504932,2.30576565,3086.6,3085.8,0.00080016]
[1767425505250,2.30576565,3086.6,3085.9,6.48106455]
[1767425505453,2.30576565,3086.6,3085.9,3.24051885]
[1767425505627,0.23057657,3086.5,3085.9,3.24051885]
[1767425505948,0.23057657,3086.5,3085.9,3.24251885]
[1767425506120,3.15476565,3086.9,3086.0,0.0324044]
[1767425507155,3.15476565,3086.9,3086.1,3.24033569]
[1767425507354,2.30576565,3086.9,3086.1,6.48067138]
[1767425508269,0.0018,3087.0,3086.1,8.89486497]
[1767425508465,0.23255657,3087.0,3086.1,8.89486497]
[1767425509170,0.0018,3087.0,3086.2,2.41419359]
[1767425510067,0.0018,3087.0,3086.3,6.48025142]
[1767425510873,0.0018,3087.0,3086.3,3.24012571]
[1767425511044,0.0018,3087.0,3086.3,6.48025142]
[1767425512460,0.0018,3087.0,3086.3,6.51265267]
[1767425512661,0.0018,3087.0,3086.4,0.89268463]
[1767425513270,2.30756565,3087.0,3086.4,0.89268463]
[1767425513459,0.0018,3087.0,3086.4,0.92508483]
[1767425513660,0.0018,3087.0,3086.5,2.41419359]
[1767425514168,0.0008,3087.5,3086.7,8.89360525]
[1767425514344,0.0008,3087.5,3086.7,9.86804578]
[1767425516345,0.0008,3087.5,3086.8,2.41419359]
[1767425516874,0.001,3087.8,3087.2,2.41419359]
[1767425517970,0.001,3087.8,3087.3,0.85]
[1767425518179,0.001,3087.8,3087.1,0.00080008]
[1767425518544,0.26512092,3087.8,3087.1,0.00080008]
[1767425518742,2.33921,3087.7,3087.1,0.00080008]
[1767425519060,0.001,3087.5,3087.1,0.00080008]
[1767425520275,0.001,3087.5,3087.1,2.40704772]
[1767425520448,0.001,3087.8,3087.1,2.40704772]
[1767425520644,2.28226887,3087.8,3087.1,0.00080008]
[1767425520849,0.00080008,3087.5,3086.6,0.00080008]
[1767425521059,2.28206895,3087.5,3086.6,0.00080008]
[1767425521368,2.28126887,3087.3,3086.6,0.00080008]
[1767425521563,0.03344435,3087.2,3086.6,0.00080008]
[1767425521967,2.54618454,3087.2,3086.6,0.00080008]
[1767425522365,5.52055493,3087.1,3086.6,0.00080008]
[1767425523179,2.28126887,3087.1,3086.6,0.00080008]
[1767425523978,2.31471322,3087.1,3086.6,0.00080008]
[1767425524479,5.55406514,3087.1,3086.6,0.00080008]
[1767425524672,0.66345365,3087.0,3086.6,0.00080008]
[1767425525567,2.28126887,3086.9,3085.9,0.002]
[1767425526382,8.76047063,3086.8,3085.9,0.002]
[1767425526758,2.28126887,3086.7,3085.9,0.002]
[1767425526975,0.87604706,3086.6,3085.9,0.002]
[1767425527391,2.28126887,3086.5,3085.9,0.002]
[1767425527689,0.00080016,3086.2,3085.3,2.40824764]
[1767425528478,6.48126156,3086.2,3085.3,2.40824764]
[1767425528753,8.76253043,3086.2,3085.3,2.40824764]
[1767425529074,3.15752191,3086.1,3085.3,0.002]
[1767425530405,6.39795219,3086.1,3085.3,0.002]
[1767425531789,9.63838247,3086.1,3085.3,0.002]
[1767425535690,2.28126887,3086.0,3085.3,0.002]
[1767425536092,2.31471322,3086.0,3085.0,3.24227283]
[1767425536399,0.96718268,3085.9,3085.0,0.00080008]
[1767425537295,0.03344435,3086.0,3085.1,2.40624764]
[1767425537492,3.27391355,3086.0,3085.2,2.40624764]
[1767425537995,5.55507595,3086.1,3085.2,2.40624764]
[1767425538383,5.5216316,3086.1,3085.2,2.40624764]
[1767425538556,2.28126887,3086.1,3085.3,0.03241175]
[1767425538760,2.91840098,3086.1,3085.3,0.03241175]
[1767425538961,6.15875552,3086.1,3085.3,0.03241175]
[1767425539263,6.15875552,3086.1,3085.2,2.40624764]
[1767425539567,6.15875552,3086.1,3085.3,2.40624764]
[1767425541595,3.87748665,3086.1,3085.3,5.64738463]
[1767425541803,0.03344435,3086.0,3085.3,5.64738463]
[1767425541974,0.03344435,3086.0,3085.3,2.40624764]
[1767425543182,0.03344435,3086.0,3085.3,5.64740481]
[1767425543380,3.24035454,3086.1,3085.3,6.53628208]
[1767425544297,3.24035454,3086.1,3085.4,2.40624764]
[1767425544993,3.27451521,3086.2,3085.5,2.2466776]
[1767425546094,0.00080016,3086.2,3085.5,5.48763169]
[1767425546294,0.00080016,3086.2,3085.6,2.40624764]
[1767425546895,2.28206903,3086.2,3085.0,0.00280008]
[1767425547073,2.31551338,3086.2,3085.2,5.64751974]
[1767425547268,2.31551338,3086.2,3085.3,5.64733153]
[1767425547472,2.31551338,3086.2,3085.4,5.6473008]
[1767425547688,2.31551338,3086.2,3085.4,6.53615895]
[1767425547977,3.24033569,3086.1,3085.4,3.29510579]
[1767425548173,5.55577704,3086.2,3085.4,6.53617364]
[1767425548585,5.55577704,3086.2,3085.4,6.53817364]
[1767425549198,3.27450817,3086.2,3085.5,2.35520178]
[1767425549691,0.00080016,3086.2,3085.5,2.35520178]
[1767425550093,0.00080016,3086.2,3085.6,2.41831716]
[1767425550798,0.00080016,3086.2,3085.6,3.39743437]
[1767425551004,10.29,3087.1,3085.6,3.39743437]
[1767425551005,3.24050265,3086.9,3086.0,2.38590856]
[1767425551205,0.001,3086.9,3086.0,2.38590856]
[1767425552075,0.001,3086.9,3086.1,3.24033569]
[1767425552275,0.001,3086.9,3086.1,6.5129217]
[1767425552472,0.001,3086.9,3086.2,2.38590856]
[1767425553780,0.001,3086.9,3086.3,2.38590856]
[1767425554101,0.00180008,3087.0,3086.7,5.62561439]
[1767425554476,0.00080008,3087.5,3086.8,2.38590856]
[1767425554673,0.00080008,3087.5,3086.8,2.94855001]
[1767425554882,2.47489092,3087.5,3086.6,0.00080016]
[1767425555097,2.47489092,3087.5,3086.6,3.24059251]
[1767425555628,0.00080008,3087.5,3086.7,2.38590856]
[1767425556109,0.00080008,3087.5,3086.8,6.47920176]
[1767425556279,0.00080008,3087.5,3087.0,2.38590856]
[1767425556478,0.00080008,3087.5,3087.1,2.70849942]
[1767425558208,0.00080008,3087.5,3087.3,2.38590856]
[1767425559012,0.001,3088.1,3087.7,2.38590856]
[1767425559315,0.001,3088.1,3087.3,0.85]
[1767425559517,0.001,3088.1,3087.4,2.38590856]
[1767425559812,3.27177627,3089.0,3088.0,2.38590856]
[1767425560015,0.001,3089.0,3088.0,2.38590856]
[1767425560177,0.001,3089.0,3088.2,2.38590856]
[1767425560608,0.001,3089.0,3088.1,3.2382371]
[1767425561112,0.001,3089.0,3088.2,2.38590856]
[1767425561317,0.001,3089.0,3088.1,6.4764742]
[1767425561318,1e-08,3089.0,3088.4,2.38590856]
[1767425561613,0.001,3089.4,3088.6,2.38590856]
[1767425562210,0.001,3089.4,3088.7,5.62351661]
[1767425562513,2.47509084,3089.4,3088.3,0.00160064]
[1767425562680,2.47409084,3089.2,3088.3,0.00160064]
[1767425563017,0.24740908,3089.1,3088.3,3.23959846]
[1767425563176,0.03344435,3089.3,3088.3,0.00160064]
[1767425563384,2.50753519,3089.3,3088.3,0.00160064]
[1767425564315,8.9482589,3089.2,3088.3,0.00160064]
[1767425564610,2.50753519,3089.1,3088.3,0.00160064]
[1767425565111,0.03344435,3089.1,3088.3,0.00160064]
[1767425565317,0.32705284,3089.0,3088.3,0.00160064]
[1767425565888,3.23700318,3089.3,3088.3,0.00160064]
[1767425565889,3.27044753,3089.3,3088.3,0.00160064]
[1767425566083,2.47509084,3089.4,3088.3,2.3875092]
[1767425566084,0.001,3089.4,3088.3,2.3875092]
[1767425566314,0.001,3089.4,3088.5,2.38590856]
[1767425567218,2.47509084,3089.4,3088.3,3.23958873]
[1767425567530,2.47509084,3089.4,3088.3,4.08858873]
[1767425567683,3.36993732,3089.4,3088.4,0.40885887]
[1767425568290,3.23697925,3089.3,3088.4,0.40885887]
[1767425568592,6.60684669,3089.4,3088.4,3.64676423]
[1767425569102,3.36993732,3089.4,3088.4,3.64676423]
[1767425569310,2.47509084,3089.4,3088.4,3.64676423]
[1767425569507,0.001,3089.4,3088.5,2.41828673]
[1767425569819,3.23788102,3089.4,3088.5,2.38590856]
[1767425570000,0.001,3089.4,3088.5,2.38590856]
[1767425570205,0.001,3089.4,3088.5,2.41828673]
[1767425570389,0.001,3089.4,3088.6,4.16792813]
[1767425571413,0.001,3089.4,3088.7,0.03237608]
[1767425571811,0.001,3089.4,3088.6,6.55383669]
[1767425572008,0.001,3089.4,3088.6,3.31620591]
[1767425572207,2.50853519,3089.4,3088.3,2.3875092]
[1767425572518,2.47409084,3089.2,3088.3,0.00160064]
[1767425573042,2.47409084,3089.0,3088.3,0.00160064]
[1767425574307,2.47409084,3088.8,3088.3,0.00160064]
[1767425574509,2.47409084,3088.8,3087.9,0.00080008]
[1767425574818,6.47479684,3088.9,3087.9,0.00080008]
[1767425574819,2.47409084,3088.6,3087.9,0.00080008]
[1767425576099,2.47409084,3088.6,3087.4,0.03238971]
[1767425576304,2.47489092,3088.3,3087.3,0.849]
[1767425576623,0.00080008,3088.3,3087.4,5.65726021]
[1767425576824,0.00080008,3088.3,3087.5,2.38590856]
[1767425577126,0.00080008,3088.3,3087.5,3.36043171]
[1767425578521,0.00080008,3088.3,3087.6,3.23876149]
[1767425578820,0.00080008,3088.3,3087.7,0.03238656]
[1767425580107,0.00080008,3088.3,3087.6,3.23876149]
[1767425580604,0.00080008,3088.3,3087.7,0.03238656]
[1767425580808,0.00080008,3088.3,3087.5,4.24573801]
[1767425581039,2.66535109,3088.3,3087.2,3.23910803]
[1767425581197,2.42224637,3088.1,3087.0,0.002]
[1767425581598,2.42224637,3088.1,3086.6,0.00280016]
[1767425581805,2.42224637,3087.4,3086.6,0.00280016]
[1767425582223,2.42224637,3087.4,3086.6,3.24260547]
[1767425582606,2.42224637,3087.4,3086.6,6.48241626]
[1767425582821,2.42224637,3087.4,3086.6,3.97898701]
[1767425583443,2.42224637,3087.3,3086.6,0.00280016]
[1767425585117,5.66135967,3087.3,3086.6,0.00280016]
[1767425585514,8.90047297,3087.3,3086.6,0.00280016]
[1767425585702,8.90047297,3087.3,3086.0,3.24039168]
[1767425585703,2.42224637,3086.9,3086.0,3.24039168]
[1767425585898,2.66455102,3086.8,3085.8,0.03520674]
[1767425586122,2.66455102,3086.8,3086.0,3.24033905]
[1767425586313,2.66455102,3086.8,3086.1,3.24029888]
[1767425586705,0.24230465,3086.8,3086.1,0.03240335]
[1767425586906,0.00080016,3087.0,3086.2,3.2402307]
[1767425587406,3.24022532,3087.0,3086.1,3.24030418]
[1767425587600,5.66247169,3087.0,3086.1,3.24030418]
[1767425588338,2.42304653,3087.0,3086.1,3.24030418]
[1767425589254,2.42304653,3087.0,3086.1,6.48063987]
[1767425589542,3.39810705,3087.0,3086.1,6.48063987]
[1767425590035,3.39810705,3087.0,3086.1,3.24030418]
[1767425590265,3.39810705,3087.0,3086.0,3.24041224]
[1767425590266,2.42224637,3086.9,3086.0,3.24041224]
[1767425591012,2.42224637,3086.7,3085.8,0.00280024]
[1767425591309,2.98843109,3086.7,3085.8,0.00280024]
[1767425592249,2.42224637,3086.5,3085.8,0.00280024]
[1767425593738,5.66221017,3086.5,3085.8,0.00280024]
[1767425593913,2.42224637,3086.4,3085.8,0.00280024]
[1767425594513,2.42224637,3086.3,3085.8,0.00280024]
[1767425594716,2.42224637,3086.1,3085.4,0.002]
[1767425595027,2.42224637,3086.1,3085.4,3.24306765]
[1767425595942,2.42224637,3086.1,3085.4,0.002]
[1767425597248,2.42224637,3086.0,3085.3,0.002]
[1767425598227,1.17692488,3086.2,3085.3,2.37328619]
[1767425598418,0.4417082,3086.1,3085.3,2.37328619]
[1767425598614,0.00080024,3086.2,3085.5,2.37128619]
[1767425598832,0.00080024,3086.2,3085.3,0.002]
[1767425598833,0.00080024,3086.2,3085.6,2.40369479]
[1767425599233,3.23952441,3086.9,3085.9,2.37128619]
[1767425599435,0.849,3086.9,3086.0,0.0324044]
[1767425599921,0.03344435,3086.8,3085.9,2.37128619]
[1767425600118,0.03344435,3086.8,3085.9,2.60849484]
[1767425600521,4.08854656,3086.9,3086.0,3.27284509]
[1767425600722,3.27299091,3086.9,3086.0,5.61172688]
[1767425600919,0.00180016,3087.0,3086.1,2.40368954]
[1767425601131,0.001,3086.9,3086.1,2.37128619]
[1767425601448,0.001,3086.9,3086.2,0.88521676]
[1767425602343,2.45669072,3086.9,3085.8,0.00080032]
[1767425602534,2.42224637,3086.7,3085.8,0.00080032]
[1767425602717,2.45569072,3086.7,3085.8,0.00080032]
[1767425603046,3.23960088,3086.8,3085.8,2.37208651]
[1767425603241,3.23960088,3086.8,3085.9,2.60849484]
[1767425603439,3.27398392,3086.9,3085.9,2.60849484]
[1767425603650,4.08953957,3086.9,3085.9,2.60849484]
[1767425604149,3.24053957,3086.9,3085.9,2.60849484]
[1767425604324,0.001,3086.9,3086.0,2.40369059]
[1767425604520,0.001,3086.9,3086.3,3.24012571]
[1767425604851,0.001,3086.9,3086.3,8.85153761]
[1767425605353,0.001,3086.9,3086.3,5.6114119]
[1767425606229,0.001,3086.9,3086.3,8.85153761]
[1767425606435,0.001,3086.9,3086.4,0.88839399]
[1767425606933,0.001,3086.9,3086.5,3.23991576]
[1767425608826,0.001,3086.9,3086.5,8.85111771]
[1767425609053,0.00080016,3087.5,3086.6,2.49579818]
[1767425609263,0.00080016,3087.5,3086.6,2.49659842]
[1767425609442,0.00080016,3087.5,3086.7,0.89764299]
[1767425609853,0.00080016,3087.5,3086.7,3.18694015]
[1767425610050,3.23967181,3087.5,3086.7,3.18694015]
[1767425610253,0.00080016,3087.5,3086.7,3.18694015]
[1767425610836,3.23973099,3087.5,3086.7,3.18694015]
[1767425611366,3.23973099,3087.5,3086.7,6.4266354]
[1767425611753,3.23973099,3087.5,3086.7,3.18694015]
[1767425612134,2.44254975,3087.4,3086.6,3.24057243]
[1767425612349,2.4759941,3087.4,3086.7,3.23970302]
[1767425612555,2.44254975,3087.4,3086.7,3.23970302]
[1767425612863,2.44254975,3087.4,3086.6,3.2405841]
[1767425613173,2.44254975,3087.4,3086.6,0.00080024]
[1767425613360,2.44254975,3087.4,3086.7,0.64806318]
[1767425613539,5.68152476,3087.4,3086.7,0.64806318]
[1767425614065,5.68152476,3087.4,3086.6,0.00080024]
[1767425614267,2.44254975,3087.4,3086.6,0.00080024]
[1767425614461,0.00080016,3087.5,3086.6,2.2900974]
[1767425614665,0.84980016,3087.5,3086.6,2.2900974]
[1767425615066,4.08867664,3087.5,3086.6,2.2900974]
[1767425615271,4.08867664,3087.5,3086.7,3.23970583]
[1767425615633,4.08967664,3087.5,3086.7,3.23970583]
[1767425616267,3.24067664,3087.5,3086.7,3.23970583]
[1767425616470,0.00180016,3087.5,3086.7,5.52900299]
[1767425617169,3.24066679,3087.5,3086.7,5.52900299]
[1767425617470,0.00180016,3087.5,3086.7,6.49366329]
[1767425617672,0.00180016,3087.5,3086.7,9.76576617]
[1767425617868,0.00180016,3087.5,3086.7,9.73336912]
[1767425618075,0.00180016,3087.5,3086.8,2.28929716]
[1767425618260,0.00180016,3087.5,3086.8,2.32169316]
[1767425618435,0.00180016,3087.5,3087.0,2.28929716]
[1767425618640,0.00180016,3087.5,3087.0,2.32169106]
[1767425618884,3.27262115,3088.2,3087.2,2.28929716]
[1767425619175,3.2391768,3088.2,3087.2,2.28929716]
[1767425619480,0.001,3088.2,3087.4,2.28929716]
[1767425619671,0.001,3088.2,3087.5,0.55283734]
[1767425620279,2.44354975,3088.2,3087.5,0.55283734]
[1767425620475,0.001,3088.2,3087.5,0.55283734]
[1767425620675,2.44354975,3088.2,3087.5,3.79165307]
[1767425620846,2.44354975,3088.2,3087.5,0.55283734]
[1767425621049,0.03344435,3088.1,3087.2,2.28929716]
[1767425621352,2.4759941,3088.1,3087.3,3.23906444]
[1767425621659,2.44254975,3088.1,3087.3,3.23906444]
[1767425621855,2.44254975,3088.1,3087.4,3.23895566]
[1767425622264,2.44254975,3088.1,3087.3,3.23903658]
[1767425622458,2.44254975,3088.1,3087.3,4.11587673]
[1767425622691,2.44254975,3088.0,3087.3,0.87684015]
[1767425622884,3.23828959,3088.1,3087.1,0.00080024]
[1767425622885,2.44254975,3087.8,3087.1,0.00080024]
[1767425623084,2.44254975,3087.6,3087.1,0.00080024]
[1767425624990,3.23886639,3087.5,3087.1,0.00080024]
[1767425625381,4.13431977,3087.5,3087.1,0.00080024]
[1767425627661,0.89545338,3087.5,3087.1,0.00080024]
[1767425628083,0.001,3087.6,3087.1,0.00080024]
[1767425631069,2.4769941,3087.6,3087.1,0.00080024]
[1767425632773,3.3259941,3087.6,3087.1,0.00080024]
[1767425633112,6.56475559,3087.6,3087.1,0.00080024]
[1767425633399,0.65647556,3087.5,3087.1,0.00080024]
[1767425636085,3.89535799,3087.5,3087.1,0.00080024]
[1767425636600,0.65647556,3087.5,3087.1,0.00080024]
[1767425637682,3.89534305,3087.5,3087.1,0.00080024]
[1767425638688,0.65647556,3087.5,3087.1,0.00080024]
[1767425639695,0.85,3087.6,3087.1,0.00080024]
[1767425640087,0.85,3087.6,3087.1,0.0331931]
[1767425640286,4.08876582,3087.6,3087.1,0.00080024]
[1767425640834,2.33250446,3087.5,3087.1,0.00080024]
[1767425643281,2.33250446,3087.5,3087.1,0.00080024]
[1767425643792,5.57218345,3087.5,3086.7,3.23970197]
[1767425644416,2.33250446,3087.4,3086.6,5.55502568]
[1767425645183,2.33250446,3087.4,3086.6,0.00280024]
[1767425645381,2.3333047,3087.0,3086.0,0.002]
[1767425645581,2.3333047,3087.0,3086.2,3.24017131]
[1767425646332,5.57279304,3087.0,3086.1,5.5527815]
[1767425646613,2.33250446,3086.9,3086.0,3.24240789]
[1767425646793,2.33250446,3086.9,3086.0,5.5548537]
[1767425646993,3.18150446,3086.9,3086.0,5.5548537]
[1767425647196,4.14761358,3086.9,3086.0,5.5548537]
[1767425647396,4.14761358,3086.9,3086.1,0.002]
[1767425647797,3.29861358,3086.9,3086.1,0.002]
[1767425647993,2.33250446,3086.8,3086.1,0.002]
[1767425648201,2.33250446,3086.6,3086.1,0.002]
[1767425648404,3.21369607,3086.6,3086.1,0.002]
[1767425650323,3.24002073,3086.4,3086.1,0.002]
[1767425650816,2.33250446,3086.1,3085.4,0.002]
[1767425651019,0.84980032,3086.2,3085.5,3.24096426]
[1767425651222,0.84980032,3086.2,3085.5,3.2409528]
[1767425652003,0.84980032,3086.2,3085.5,3.24095645]
[1767425652191,0.00080032,3086.2,3085.4,2.34685651]
[1767425652393,0.00080032,3086.2,3085.8,2.31244581]
[1767425653618,0.00080032,3086.2,3085.5,2.31244581]
[1767425653793,2.33330478,3086.2,3085.4,0.002]
[1767425653992,2.33330478,3086.2,3085.5,3.24095756]
[1767425654718,2.33330478,3086.2,3085.4,0.002]
[1767425654923,0.23333048,3086.1,3085.4,0.002]
[1767425655512,0.23333048,3086.1,3085.8,0.002]
[1767425657523,2.33330478,3086.2,3085.8,0.002]
[1767425657707,0.00080032,3086.2,3085.8,0.002]
[1767425660340,0.00080032,3086.2,3085.8,2.31444581]
[1767425660521,6.42115032,3086.8,3085.9,2.34485126]
[1767425660828,0.67555938,3086.7,3085.9,2.31244581]
[1767425661034,0.03344435,3086.7,3085.9,2.31244581]
[1767425661401,2.33250446,3086.8,3086.0,2.34485021]
[1767425661713,5.60556507,3086.8,3086.0,2.31244581]
[1767425662231,2.36594881,3086.8,3086.0,2.31244581]
[1767425662530,2.33250446,3086.8,3086.1,3.24033569]
[1767425662905,5.60556083,3086.8,3086.0,5.55283974]
[1767425663105,6.57513694,3086.8,3086.0,5.55283974]
[1767425664322,3.33552492,3086.8,3086.0,5.55283974]
[1767425664836,2.3343047,3087.0,3086.1,2.34484916]
[1767425665023,5.57369757,3087.0,3086.1,2.34484916]
[1767425665218,2.3343047,3087.0,3086.1,2.34484916]
[1767425665418,0.00180024,3087.0,3086.1,2.34484916]
[1767425666432,5.57125276,3087.7,3086.8,2.31244581]
[1767425666735,3.27320711,3087.6,3086.8,2.31244581]
[1767425667039,0.03444435,3087.6,3086.9,5.55194174]
[1767425667203,0.001,3087.6,3086.9,5.55194174]
[1767425670134,0.00180024,3087.5,3086.9,2.31244581]
[1767425670538,0.00180024,3087.5,3086.8,3.23955457]
[1767425671231,0.00180024,3087.5,3086.8,5.64910245]
[1767425671439,0.00180024,3087.5,3086.6,0.00080032]
[1767425671440,2.38499143,3087.5,3086.6,0.00080032]
[1767425671738,2.34974684,3087.3,3086.6,0.00080032]
[1767425672741,2.34974684,3087.3,3086.6,0.03319842]
[1767425673246,2.34974684,3087.3,3086.6,0.00080032]
[1767425673649,2.34974684,3087.3,3086.6,2.4103482]
[1767425673848,2.34974684,3087.2,3086.6,0.00080032]
[1767425674442,2.38319119,3087.2,3086.6,0.00080032]
[1767425674631,2.34974684,3087.2,3086.6,0.00080032]
[1767425676414,2.38319119,3087.2,3086.6,0.00080032]
[1767425676635,2.34974684,3087.1,3086.6,0.00080032]
[1767425677833,6.21820787,3087.1,3086.6,0.00080032]
[1767425678021,2.38319119,3087.0,3086.6,0.00080032]
[1767425680815,2.34974684,3086.8,3086.6,0.00080032]
[1767425681525,2.34974684,3086.8,3086.0,5.64995269]
[1767425681736,2.34974684,3086.8,3086.0,2.40954788]
[1767425681932,2.34974684,3086.7,3086.0,2.40954788]
[1767425682818,2.34974684,3086.7,3085.9,0.002]
[1767425683027,2.34974684,3086.5,3085.9,0.002]
[1767425685144,5.58970629,3086.5,3085.9,0.002]
[1767425686462,2.34974684,3086.5,3085.9,0.002]
[1767425686647,3.19874684,3086.5,3085.9,2.41154788]
[1767425686847,0.849,3086.5,3085.9,2.41154788]
[1767425687464,1.49620485,3086.5,3085.9,2.41154788]
[1767425687960,0.64720485,3086.5,3085.9,2.41154788]
[1767425688148,0.64720485,3086.5,3086.0,2.44195228]
[1767425688343,2.99695169,3086.5,3086.0,0.0324044]
[1767425688531,6.4386748,3086.5,3085.9,0.002]
[1767425689455,2.34974684,3086.3,3085.9,0.002]
[1767425692653,2.34974684,3086.2,3085.9,0.002]
[1767425695164,2.34974684,3086.1,3085.4,0.002]
[1767425695460,3.19874684,3086.0,3085.4,0.002]
[1767425695660,0.31987468,3085.9,3085.4,0.002]
[1767425695954,2.34974684,3085.8,3085.4,0.002]
[1767425696636,2.34974684,3085.8,3084.9,3.65986531]
[1767425696834,3.07236742,3085.9,3084.9,3.65986531]
[1767425696835,0.00080008,3085.4,3084.9,3.65986531]
[1767425697050,0.00080008,3085.4,3084.9,0.41834796]
[1767425697251,0.00080008,3085.4,3084.8,3.24369942]
[1767425697555,0.00080008,3085.4,3084.8,0.002]
[1767425697956,2.35054692,3085.4,3084.8,3.24369595]
[1767425699057,2.35054692,3085.4,3084.9,3.24153334]
[1767425699246,2.35054692,3085.4,3084.8,5.62411324]
[1767425699560,0.84980008,3085.4,3084.9,2.38045307]
[1767425700232,3.27424698,3085.4,3084.7,2.38245307]
[1767425700430,2.4244469,3085.3,3084.7,0.002]